[Event "ONJK 2023 U25"]
[Site "Dieren, Netherlands"]
[Date "2023.08.08"]
[Round "5.3"]
[White "Boudry, William"]
[Black "Johannesson, Björn"]
[Result "1-0"]
[TimeControl "90min + 30sec/zet"]
[WhiteElo "2084"]
[BlackElo "1200"]

1. d4 {[%clk 01:30:35]} {[%emt 00:00:24]} d5 {[%clk 01:30:53]} {[%emt
00:00:08]} 2. Nf3 {[%clk 01:30:47]} {[%emt 00:00:15]} Nf6 {[%clk 01:31:06]}
{[%emt 00:00:20]} 3. Bf4 {[%clk 01:31:02]} {[%emt 00:00:15]} c5 {[%clk
01:30:37]} {[%emt 00:00:59]} 4. e3 {[%clk 01:31:24]} {[%emt 00:00:07]} e6
{[%clk 01:28:55]} {[%emt 00:02:12]} 5. c3 {[%clk 01:31:43]} {[%emt 00:00:12]}
c4 {[%clk 01:29:01]} {[%emt 00:00:24]} 6. Nbd2 {[%clk 01:31:47]} {[%emt
00:00:26]} Bd6 {[%clk 01:27:15]} {[%emt 00:02:16]} 7. Bxd6 {[%clk 01:28:19]}
{[%emt 00:03:57]} Qxd6 {[%clk 01:27:34]} {[%emt 00:00:12]} 8. e4 {[%clk
01:28:08]} {[%emt 00:00:41]} Nxe4 {[%clk 01:25:43]} {[%emt 00:02:21]} 9. Nxe4
{[%clk 01:28:16]} {[%emt 00:00:22]} dxe4 {[%clk 01:26:02]} {[%emt 00:00:11]} 10.
Nd2 {[%clk 01:28:28]} {[%emt 00:00:16]} b5 {[%clk 01:23:58]} {[%emt 00:02:36]}
11. a4 {[%clk 01:25:24]} {[%emt 00:03:35]} Bd7 {[%clk 01:19:48]} {[%emt
00:04:39]} 12. Qg4 {[%clk 01:21:34]} {[%emt 00:04:19]} O-O {[%clk 01:17:19]}
{[%emt 00:02:59]} 13. Nxe4 {[%clk 01:21:09]} {[%emt 00:00:54]} f5 {[%clk
01:14:38]} {[%emt 00:03:13]} 14. Nxd6 {[%clk 01:19:27]} {[%emt 00:02:12]} fxg4
{[%clk 01:15:03]} {[%emt 00:00:05]} 15. axb5 {[%clk 01:19:35]} {[%emt
00:00:22]} Be8 {[%clk 01:07:44]} {[%emt 00:07:49]} 16. Bxc4 {[%clk 01:19:09]}
{[%emt 00:00:55]} Bf7 {[%clk 01:07:38]} {[%emt 00:00:37]} 17. Nxf7 {[%clk
01:19:07]} {[%emt 00:00:32]} Kxf7 {[%clk 01:07:52]} {[%emt 00:00:15]} 18. d5
{[%clk 01:19:28]} {[%emt 00:00:09]} Re8 {[%clk 01:06:51]} {[%emt 00:01:31]} 19.
dxe6+ {[%clk 01:19:48]} {[%emt 00:00:10]} Rxe6+ {[%clk 01:06:03]} {[%emt
00:01:18]} 20. Bxe6+ {[%clk 01:20:06]} {[%emt 00:00:12]} Kxe6 {[%clk 01:06:30]}
{[%emt 00:00:04]} 21. O-O-O {[%clk 01:19:55]} {[%emt 00:00:40]} a6 {[%clk
01:04:51]} {[%emt 00:02:09]} 22. Rhe1+ {[%clk 01:20:05]} {[%emt 00:00:21]} Kf7
{[%clk 01:05:05]} {[%emt 00:00:16]} 23. b6 {[%clk 01:20:19]} {[%emt 00:00:15]}
Nc6 {[%clk 01:05:24]} {[%emt 00:00:11]} 24. Rd7+ {[%clk 01:20:31]} {[%emt
00:00:18]} Kf8 {[%clk 01:05:36]} {[%emt 00:00:19]} 25. Rc7 {[%clk 01:20:38]}
{[%emt 00:00:22]} Nd8 {[%clk 01:05:22]} {[%emt 00:00:45]} 26. b7 {[%clk
01:20:50]} {[%emt 00:00:18]} Rb8 {[%clk 01:05:48]} {[%emt 00:00:03]} 27. Rc8
{[%clk 01:21:09]} {[%emt 00:00:11]} 1-0

[Event "ONJK 2023 U25"]
[Site "Dieren, Netherlands"]
[Date "2023.08.09"]
[Round "6.1"]
[White "Boudry, William"]
[Black "Baselmans, Luuk"]
[Result "0-1"]
[TimeControl "90min + 30sec/zet"]
[WhiteElo "2084"]
[BlackElo "2338"]

1. e4 {[%clk 01:30:52]} {[%emt 00:00:07]} e6 {[%clk 01:30:46]} {[%emt
00:00:15]} 2. d3 {[%clk 01:30:47]} {[%emt 00:00:35]} d5 {[%clk 01:30:56]}
{[%emt 00:00:20]} 3. Nd2 {[%clk 01:31:04]} {[%emt 00:00:13]} Nf6 {[%clk
01:31:00]} {[%emt 00:00:25]} 4. Ngf3 {[%clk 01:31:26]} {[%emt 00:00:09]} c5
{[%clk 01:30:26]} {[%emt 00:01:04]} 5. g3 {[%clk 01:31:42]} {[%emt 00:00:14]}
Nc6 {[%clk 01:30:47]} {[%emt 00:00:09]} 6. Bg2 {[%clk 01:32:02]} {[%emt
00:00:09]} Be7 {[%clk 01:30:43]} {[%emt 00:00:35]} 7. O-O {[%clk 01:32:14]}
{[%emt 00:00:18]} O-O {[%clk 01:28:12]} {[%emt 00:03:01]} 8. Re1 {[%clk
01:30:35]} {[%emt 00:02:09]} dxe4 {[%clk 01:24:55]} {[%emt 00:03:47]} 9. dxe4
{[%clk 01:29:41]} {[%emt 00:01:24]} e5 {[%clk 01:25:11]} {[%emt 00:00:14]} 10.
c3 {[%clk 01:29:26]} {[%emt 00:00:45]} Qc7 {[%clk 01:23:42]} {[%emt 00:01:59]}
11. Qc2 {[%clk 01:29:00]} {[%emt 00:00:55]} h6 {[%clk 01:20:17]} {[%emt
00:03:56]} 12. Nc4 {[%clk 01:27:23]} {[%emt 00:02:07]} Be6 {[%clk 01:19:47]}
{[%emt 00:00:59]} 13. Ne3 {[%clk 01:27:09]} {[%emt 00:00:44]} Rfd8 {[%clk
01:19:18]} {[%emt 00:00:59]} 14. Nh4 {[%clk 01:24:00]} {[%emt 00:03:40]} c4
{[%clk 01:16:35]} {[%emt 00:03:13]} 15. Qe2 {[%clk 01:17:42]} {[%emt 00:06:48]}
b5 {[%clk 01:08:23]} {[%emt 00:08:43]} 16. Nhf5 {[%clk 01:12:14]} {[%emt
00:05:57]} Bf8 {[%clk 01:01:14]} {[%emt 00:07:40]} 17. Qf3 {[%clk 01:07:49]}
{[%emt 00:04:55]} h5 {[%clk 00:55:07]} {[%emt 00:06:36]} 18. Nh6+ {[%clk
00:58:38]} {[%emt 00:09:41]} Kh7 {[%clk 00:52:03]} {[%emt 00:03:34]} 19. h3
{[%clk 00:51:54]} {[%emt 00:07:15]} b4 {[%clk 00:42:53]} {[%emt 00:09:39]} 20.
g4 {[%clk 00:48:22]} {[%emt 00:04:02]} bxc3 {[%clk 00:40:28]} {[%emt 00:02:55]}
21. bxc3 {[%clk 00:41:32]} {[%emt 00:07:20]} hxg4 {[%clk 00:40:11]} {[%emt
00:00:48]} 22. Nhxg4 {[%clk 00:39:51]} {[%emt 00:02:11]} Nxg4 {[%clk 00:39:08]}
{[%emt 00:01:32]} 23. hxg4 {[%clk 00:40:03]} {[%emt 00:00:17]} Kg8 {[%clk
00:38:07]} {[%emt 00:01:32]} 24. Nd5 {[%clk 00:29:57]} {[%emt 00:10:36]} Qc8
{[%clk 00:37:54]} {[%emt 00:00:44]} 25. Bg5 {[%clk 00:24:21]} {[%emt 00:06:05]}
Bxg4 {[%clk 00:34:40]} {[%emt 00:03:44]} 26. Qg3 {[%clk 00:24:15]} {[%emt
00:00:36]} Rd6 {[%clk 00:35:03]} {[%emt 00:00:07]} 27. f3 {[%clk 00:23:54]}
{[%emt 00:00:51]} Rg6 {[%clk 00:35:21]} {[%emt 00:00:12]} 28. Qh4 {[%clk
00:23:31]} {[%emt 00:00:53]} Bxf3 {[%clk 00:33:44]} {[%emt 00:02:07]} 29. Bxf3
{[%clk 00:22:16]} {[%emt 00:01:45]} Qd8 {[%clk 00:33:51]} {[%emt 00:00:24]} 30.
Kf2 {[%clk 00:21:41]} {[%emt 00:01:05]} Qxg5 {[%clk 00:32:53]} {[%emt
00:01:27]} 31. Rh1 {[%clk 00:21:35]} {[%emt 00:00:37]} Bc5+ {[%clk 00:26:20]}
{[%emt 00:07:02]} 32. Ke2 {[%clk 00:21:58]} {[%emt 00:00:07]} Qxh4 {[%clk
00:26:45]} {[%emt 00:00:06]} 33. Rxh4 {[%clk 00:22:20]} {[%emt 00:00:08]} Rb8
{[%clk 00:27:07]} {[%emt 00:00:07]} 34. Rah1 {[%clk 00:21:34]} {[%emt
00:01:16]} Rb2+ {[%clk 00:27:29]} {[%emt 00:00:09]} 35. Kd1 {[%clk 00:21:42]}
{[%emt 00:00:22]} Rg1+ {[%clk 00:27:29]} {[%emt 00:00:30]} 36. Rxg1 {[%clk
00:22:07]} {[%emt 00:00:05]} Bxg1 {[%clk 00:27:28]} {[%emt 00:00:30]} 37. Be2
{[%clk 00:22:16]} {[%emt 00:00:22]} Rxa2 {[%clk 00:23:47]} {[%emt 00:04:11]} 38.
Bxc4 {[%clk 00:22:38]} {[%emt 00:00:08]} Ra4 {[%clk 00:24:08]} {[%emt
00:00:08]} 39. Bb5 {[%clk 00:22:25]} {[%emt 00:00:44]} Ra1+ {[%clk 00:24:30]}
{[%emt 00:00:08]} 40. Kc2 {[%clk 00:22:44]} {[%emt 00:00:10]} Nd8 {[%clk
00:24:17]} {[%emt 00:00:44]} 41. Ne7+ {[%clk 00:22:59]} {[%emt 00:00:15]} Kf8
{[%clk 00:24:41]} {[%emt 00:00:06]} 42. Nf5 {[%clk 00:23:22]} {[%emt 00:00:07]}
Ra2+ {[%clk 00:24:24]} {[%emt 00:00:47]} 43. Kb3 {[%clk 00:23:31]} {[%emt
00:00:22]} Rh2 {[%clk 00:24:47]} {[%emt 00:00:06]} 44. Rg4 {[%clk 00:23:49]}
{[%emt 00:00:12]} Bf2 {[%clk 00:17:42]} {[%emt 00:07:34]} 45. Rxg7 {[%clk
00:22:32]} {[%emt 00:01:47]} Ne6 {[%clk 00:16:43]} {[%emt 00:01:29]} 46. Rg4
{[%clk 00:22:07]} {[%emt 00:00:55]} Rh3 {[%clk 00:16:49]} {[%emt 00:00:25]} 47.
Bf1 {[%clk 00:19:11]} {[%emt 00:03:22]} Rh1 {[%clk 00:17:11]} {[%emt 00:00:11]}
48. Bc4 {[%clk 00:18:50]} {[%emt 00:00:52]} Nc5+ {[%clk 00:16:50]} {[%emt
00:00:51]} 49. Kc2 {[%clk 00:19:14]} {[%emt 00:00:05]} Rh2 {[%clk 00:16:58]}
{[%emt 00:00:23]} 50. Nd6 {[%clk 00:18:29]} {[%emt 00:01:10]} Bd4+ {[%clk
00:16:54]} {[%emt 00:00:39]} 51. Kd1 {[%clk 00:18:35]} {[%emt 00:00:23]} Bxc3
{[%clk 00:17:13]} {[%emt 00:00:11]} 52. Nxf7 {[%clk 00:18:59]} {[%emt
00:00:06]} Na4 {[%clk 00:16:27]} {[%emt 00:01:16]} 53. Kc1 {[%clk 00:15:50]}
{[%emt 00:03:40]} Bb2+ {[%clk 00:11:30]} {[%emt 00:05:26]} 54. Kd1 {[%clk
00:16:13]} {[%emt 00:00:07]} Ke7 {[%clk 00:11:45]} {[%emt 00:00:16]} 55. Rg6
{[%clk 00:13:40]} {[%emt 00:03:03]} Nc3+ {[%clk 00:09:42]} {[%emt 00:02:33]} 56.
Ke1 {[%clk 00:13:50]} {[%emt 00:00:19]} Rh1+ {[%clk 00:10:01]} {[%emt
00:00:12]} 57. Kf2 {[%clk 00:13:19]} {[%emt 00:01:01]} Nxe4+ {[%clk 00:10:24]}
{[%emt 00:00:07]} 58. Kg2 {[%clk 00:13:33]} {[%emt 00:00:14]} Rc1 {[%clk
00:10:27]} {[%emt 00:00:29]} 59. Bb3 {[%clk 00:12:40]} {[%emt 00:01:23]} Rc3
{[%clk 00:10:16]} {[%emt 00:00:41]} 60. Ba2 {[%clk 00:12:36]} {[%emt 00:00:34]}
Ra3 {[%clk 00:09:10]} {[%emt 00:01:37]} 61. Bc4 {[%clk 00:12:33]} {[%emt
00:00:32]} Ra4 {[%clk 00:08:23]} {[%emt 00:01:17]} 62. Bb3 {[%clk 00:12:08]}
{[%emt 00:00:55]} Rb4 {[%clk 00:08:44]} {[%emt 00:00:08]} 63. Ba2 {[%clk
00:12:05]} {[%emt 00:00:34]} Nc3 {[%clk 00:07:22]} {[%emt 00:01:52]} 64. Nxe5
{[%clk 00:11:01]} {[%emt 00:01:33]} Rb5 {[%clk 00:04:06]} {[%emt 00:03:47]} 65.
Re6+ {[%clk 00:10:11]} {[%emt 00:01:18]} Kd8 {[%clk 00:04:05]} {[%emt
00:00:32]} 66. Kf3 {[%clk 00:09:32]} {[%emt 00:01:10]} Nxa2 {[%clk 00:04:21]}
{[%emt 00:00:14]} 67. Nc6+ {[%clk 00:09:08]} {[%emt 00:00:54]} Kd7 {[%clk
00:04:35]} {[%emt 00:00:16]} 68. Rh6 {[%clk 00:08:40]} {[%emt 00:00:57]} Rb6
{[%clk 00:04:51]} {[%emt 00:00:15]} 69. Rh7+ {[%clk 00:08:53]} {[%emt
00:00:17]} Kxc6 {[%clk 00:05:13]} {[%emt 00:00:08]} 70. Rxa7 {[%clk 00:09:22]}
{[%emt 00:00:01]} Nb4 {[%clk 00:05:30]} {[%emt 00:00:13]} 71. Rh7 {[%clk
00:09:37]} {[%emt 00:00:14]} Nd5 {[%clk 00:05:44]} {[%emt 00:00:17]} 72. Ke2
{[%clk 00:09:45]} {[%emt 00:00:22]} Kc5 {[%clk 00:06:06]} {[%emt 00:00:08]} 73.
Kd3 {[%clk 00:09:59]} {[%emt 00:00:12]} Bd4 {[%clk 00:06:14]} {[%emt 00:00:25]}
74. Rh5 {[%clk 00:10:07]} {[%emt 00:00:22]} Rb3+ {[%clk 00:06:32]} {[%emt
00:00:12]} 75. Kc2 {[%clk 00:10:32]} {[%emt 00:00:05]} Kc4 {[%clk 00:06:52]}
{[%emt 00:00:11]} 76. Rh4 {[%clk 00:10:20]} {[%emt 00:00:41]} Ne3+ {[%clk
00:06:37]} {[%emt 00:00:46]} 77. Kc1 {[%clk 00:10:14]} {[%emt 00:00:35]} Ra3
{[%clk 00:06:19]} {[%emt 00:00:48]} 78. Rh7 {[%clk 00:09:00]} {[%emt 00:01:44]}
Kd3 {[%clk 00:05:47]} {[%emt 00:01:03]} 79. Rb7 {[%clk 00:09:08]} {[%emt
00:00:22]} Ra1+ {[%clk 00:05:26]} {[%emt 00:00:50]} 80. Rb1 {[%clk 00:09:15]}
{[%emt 00:00:23]} Rxb1+ {[%clk 00:05:48]} {[%emt 00:00:08]} 0-1

[Event "ONJK 2023 U25"]
[Site "Dieren, Netherlands"]
[Date "2023.08.09"]
[Round "6.2"]
[White "Verheul, Job"]
[Black "Van Randtwijk, Mick"]
[Result "1-0"]
[TimeControl "90min + 30sec/zet"]
[WhiteElo "1952"]
[BlackElo "2035"]

1. e4 {[%clk 01:30:57]} {[%emt 00:00:02]} c5 {[%clk 01:30:54]} {[%emt
00:00:06]} 2. Nf3 {[%clk 01:31:18]} {[%emt 00:00:07]} d6 {[%clk 01:31:15]}
{[%emt 00:00:12]} 3. d4 {[%clk 01:31:17]} {[%emt 00:00:30]} cxd4 {[%clk
01:31:14]} {[%emt 00:00:31]} 4. Nxd4 {[%clk 01:31:28]} {[%emt 00:00:18]} Nf6
{[%clk 01:31:32]} {[%emt 00:00:13]} 5. Nc3 {[%clk 01:31:50]} {[%emt 00:00:07]}
a6 {[%clk 01:31:51]} {[%emt 00:00:12]} 6. Rg1 {[%clk 01:31:53]} {[%emt
00:00:27]} e5 {[%clk 01:21:17]} {[%emt 00:11:04]} 7. Nb3 {[%clk 01:31:42]}
{[%emt 00:00:41]} Be6 {[%clk 01:19:37]} {[%emt 00:02:10]} 8. g4 {[%clk
01:31:46]} {[%emt 00:00:26]} Be7 {[%clk 01:19:18]} {[%emt 00:00:49]} 9. g5
{[%clk 01:31:57]} {[%emt 00:00:19]} Nfd7 {[%clk 01:19:24]} {[%emt 00:00:23]} 10.
Be3 {[%clk 01:31:58]} {[%emt 00:00:29]} Nc6 {[%clk 01:13:43]} {[%emt 00:06:12]}
11. Qd2 {[%clk 01:31:51]} {[%emt 00:00:35]} Qc7 {[%clk 01:11:22]} {[%emt
00:02:52]} 12. Nd5 {[%clk 01:24:22]} {[%emt 00:07:59]} Bxd5 {[%clk 01:11:39]}
{[%emt 00:00:14]} 13. exd5 {[%clk 01:24:32]} {[%emt 00:00:20]} Nd8 {[%clk
01:11:56]} {[%emt 00:00:13]} 14. O-O-O {[%clk 01:23:54]} {[%emt 00:01:07]} b5
{[%clk 01:05:15]} {[%emt 00:07:12]} 15. Kb1 {[%clk 01:17:47]} {[%emt 00:06:37]}
O-O {[%clk 01:01:50]} {[%emt 00:03:55]} 16. Bd3 {[%clk 00:56:59]} {[%emt
00:21:18]} Nb7 {[%clk 00:51:52]} {[%emt 00:10:28]} 17. h4 {[%clk 00:52:56]}
{[%emt 00:04:32]} Nbc5 {[%clk 00:49:01]} {[%emt 00:03:21]} 18. h5 {[%clk
00:41:00]} {[%emt 00:12:26]} g6 {[%clk 00:41:31]} {[%emt 00:08:01]} 19. f4
{[%clk 00:33:54]} {[%emt 00:07:36]} exf4 {[%clk 00:31:44]} {[%emt 00:10:17]} 20.
Bd4 {[%clk 00:32:06]} {[%emt 00:02:18]} Nxb3 {[%clk 00:29:30]} {[%emt
00:02:44]} 21. cxb3 {[%clk 00:31:38]} {[%emt 00:00:57]} Ne5 {[%clk 00:29:36]}
{[%emt 00:00:25]} 22. Qxf4 {[%clk 00:29:34]} {[%emt 00:02:34]} Rac8 {[%clk
00:27:50]} {[%emt 00:02:16]} 23. Be4 {[%clk 00:28:30]} {[%emt 00:01:33]} Rfe8
{[%clk 00:25:00]} {[%emt 00:03:21]} 24. Rh1 {[%clk 00:24:10]} {[%emt 00:04:50]}
Bf8 {[%clk 00:23:26]} {[%emt 00:02:04]} 25. Qh4 {[%clk 00:23:19]} {[%emt
00:01:19]} Qd7 {[%clk 00:16:48]} {[%emt 00:07:10]} 26. Bxe5 {[%clk 00:19:00]}
{[%emt 00:04:49]} Rxe5 {[%clk 00:16:56]} {[%emt 00:00:22]} 27. hxg6 {[%clk
00:19:10]} {[%emt 00:00:20]} fxg6 {[%clk 00:17:22]} {[%emt 00:00:04]} 28. Bxg6
{[%clk 00:18:51]} {[%emt 00:00:48]} Re7 {[%clk 00:17:39]} {[%emt 00:00:13]} 29.
Rdf1 {[%clk 00:17:05]} {[%emt 00:02:16]} Rd8 {[%clk 00:11:53]} {[%emt
00:06:17]} 30. Bf5 {[%clk 00:16:17]} {[%emt 00:01:17]} Qa7 {[%clk 00:12:06]}
{[%emt 00:00:17]} 31. Be6+ {[%clk 00:15:41]} {[%emt 00:01:06]} Kh8 {[%clk
00:12:31]} {[%emt 00:00:05]} 32. g6 {[%clk 00:15:49]} {[%emt 00:00:22]} h6
{[%clk 00:12:39]} {[%emt 00:00:22]} 33. Qf6+ {[%clk 00:16:03]} {[%emt
00:00:16]} Bg7 {[%clk 00:12:58]} {[%emt 00:00:11]} 34. Rxh6# {[%clk 00:16:22]}
{[%emt 00:00:10]} 1-0

[Event "ONJK 2023 U25"]
[Site "Dieren, Netherlands"]
[Date "2023.08.09"]
[Round "6.3"]
[White "Guillaumond, Matthieu"]
[Black "Faybish, Benjamin"]
[Result "0-1"]
[TimeControl "90min + 30sec/zet"]
[WhiteElo "1856"]
[BlackElo "2064"]

1. e4 {[%clk 01:30:58]} {[%emt 00:00:01]} c5 {[%clk 01:30:54]} {[%emt
00:00:06]} 2. c3 {[%clk 01:31:16]} {[%emt 00:00:12]} Nf6 {[%clk 01:31:19]}
{[%emt 00:00:05]} 3. e5 {[%clk 01:31:35]} {[%emt 00:00:12]} Nd5 {[%clk
01:31:44]} {[%emt 00:00:05]} 4. Nf3 {[%clk 01:31:55]} {[%emt 00:00:10]} d6
{[%clk 01:32:03]} {[%emt 00:00:11]} 5. Bc4 {[%clk 01:31:55]} {[%emt 00:00:29]}
Nb6 {[%clk 01:32:04]} {[%emt 00:00:30]} 6. Bb3 {[%clk 01:32:14]} {[%emt
00:00:11]} c4 {[%clk 01:32:08]} {[%emt 00:00:26]} 7. Bc2 {[%clk 01:32:28]}
{[%emt 00:00:16]} dxe5 {[%clk 01:32:21]} {[%emt 00:00:16]} 8. Nxe5 {[%clk
01:32:26]} {[%emt 00:00:33]} Qd5 {[%clk 01:32:29]} {[%emt 00:00:22]} 9. Nf3
{[%clk 01:32:40]} {[%emt 00:00:15]} Bf5 {[%clk 01:30:34]} {[%emt 00:02:26]} 10.
O-O {[%clk 01:30:54]} {[%emt 00:02:14]} e6 {[%clk 01:29:53]} {[%emt 00:01:13]}
11. Nd4 {[%clk 01:19:08]} {[%emt 00:12:16]} Bxc2 {[%clk 01:28:44]} {[%emt
00:01:39]} 12. Qxc2 {[%clk 01:17:53]} {[%emt 00:01:44]} Bc5 {[%clk 01:23:47]}
{[%emt 00:05:28]} 13. Ne2 {[%clk 01:16:29]} {[%emt 00:01:54]} O-O {[%clk
01:22:54]} {[%emt 00:01:23]} 14. Nf4 {[%clk 01:13:37]} {[%emt 00:03:21]} Qd7
{[%clk 01:22:23]} {[%emt 00:01:01]} 15. d4 {[%clk 01:08:56]} {[%emt 00:05:11]}
cxd3 {[%clk 01:22:25]} {[%emt 00:00:29]} 16. Qxd3 {[%clk 01:09:16]} {[%emt
00:00:09]} Qxd3 {[%clk 01:20:09]} {[%emt 00:02:47]} 17. Nxd3 {[%clk 01:09:44]}
{[%emt 00:00:01]} Be7 {[%clk 01:20:14]} {[%emt 00:00:26]} 18. Rd1 {[%clk
01:02:30]} {[%emt 00:07:43]} Rd8 {[%clk 01:18:46]} {[%emt 00:01:58]} 19. Bf4
{[%clk 00:56:41]} {[%emt 00:06:17]} Nc6 {[%clk 01:18:38]} {[%emt 00:00:40]} 20.
Kf1 {[%clk 00:54:15]} {[%emt 00:02:55]} e5 {[%emt 00:06:31]} 0-1

[Event "ONJK 2023 U25"]
[Site "Dieren, Netherlands"]
[Date "2023.08.10"]
[Round "7.1"]
[White "Said, Omar"]
[Black "Baselmans, Luuk"]
[Result "0-1"]
[TimeControl "90min + 30sec/zet"]
[WhiteElo "1682"]
[BlackElo "2338"]

1. e4 {[%clk 01:30:48]} {[%emt 00:00:05]} c5 {[%clk 01:30:48]} {[%emt
00:00:18]} 2. Nf3 {[%clk 01:31:04]} {[%emt 00:00:13]} Nc6 {[%clk 01:31:08]}
{[%emt 00:00:11]} 3. b4 {[%clk 01:30:45]} {[%emt 00:00:49]} cxb4 {[%clk
01:30:17]} {[%emt 00:01:21]} 4. d4 {[%clk 01:31:04]} {[%emt 00:00:11]} e6
{[%clk 01:30:34]} {[%emt 00:00:12]} 5. d5 {[%clk 01:28:34]} {[%emt 00:03:01]}
Qf6 {[%clk 01:28:52]} {[%emt 00:02:12]} 6. c3 {[%clk 01:18:26]} {[%emt
00:10:38]} Ne5 {[%clk 01:25:42]} {[%emt 00:03:40]} 7. Nd4 {[%clk 01:18:16]}
{[%emt 00:00:40]} Bc5 {[%clk 01:13:58]} {[%emt 00:12:14]} 8. f4 {[%clk
01:10:01]} {[%emt 00:08:45]} bxc3 {[%clk 01:13:03]} {[%emt 00:01:25]} 9. Nb5
{[%clk 01:03:06]} {[%emt 00:07:26]} Kf8 {[%clk 01:06:17]} {[%emt 00:07:15]} 10.
Qh5 {[%clk 00:54:48]} {[%emt 00:08:48]} d6 {[%clk 00:58:59]} {[%emt 00:07:49]}
11. N1xc3 {[%clk 00:42:13]} {[%emt 00:13:05]} Ng6 {[%clk 00:56:08]} {[%emt
00:03:20]} 12. Qf3 {[%clk 00:41:14]} {[%emt 00:01:29]} exd5 {[%clk 00:52:24]}
{[%emt 00:04:14]} 13. e5 {[%clk 00:40:18]} {[%emt 00:01:27]} dxe5 {[%clk
00:51:07]} {[%emt 00:01:47]} 14. Nxd5 {[%clk 00:35:15]} {[%emt 00:05:32]} e4
{[%clk 00:49:58]} {[%emt 00:01:39]} 15. Qa3 {[%clk 00:24:15]} {[%emt 00:11:30]}
Qxa1 {[%clk 00:44:57]} {[%emt 00:05:31]} 16. Qxc5+ {[%clk 00:24:02]} {[%emt
00:00:43]} N8e7 {[%clk 00:45:20]} {[%emt 00:00:08]} 17. Nbc7 {[%clk 00:19:43]}
{[%emt 00:04:49]} b6 {[%clk 00:44:13]} {[%emt 00:01:36]} 18. Qa3 {[%clk
00:18:32]} {[%emt 00:01:41]} Bb7 {[%clk 00:25:44]} {[%emt 00:19:00]} 19. Nxe7
{[%clk 00:13:03]} {[%emt 00:05:59]} Nxe7 {[%clk 00:26:08]} {[%emt 00:00:05]} 20.
Nxa8 {[%clk 00:13:19]} {[%emt 00:00:14]} Bxa8 {[%clk 00:26:34]} {[%emt
00:00:05]} 21. Bb5 {[%clk 00:11:42]} {[%emt 00:02:06]} Qd4 {[%clk 00:19:11]}
{[%emt 00:07:53]} 22. Be3 {[%clk 00:12:11]} {[%emt 00:00:01]} Qd8 {[%clk
00:18:52]} {[%emt 00:00:50]} 23. Qa4 {[%emt 00:00:55]} a6 24. Qxa6 {[%clk
00:11:45]} Nd5 {[%clk 00:18:47]} {[%emt 00:00:34]} 25. Qa7 {[%clk 00:10:45]} h5
{[%clk 00:18:05]} {[%emt 00:02:42]} 26. Bc1 {[%clk 00:10:21]} Rh6 {[%clk
00:17:49]} {[%emt 00:01:40]} 27. O-O {[%clk 00:10:06]} Kg8 {[%clk 00:17:30]}
{[%emt 00:01:35]} 28. Rd1 {[%clk 00:09:10]} Rf6 {[%emt 00:03:09]} 29. Bc4 Rd6
{[%clk 00:16:17]} 30. Ba3 {[%clk 00:09:07]} {[%emt 00:00:33]} Rd7 {[%clk
00:16:37]} {[%emt 00:00:10]} 31. Qa4 {[%clk 00:09:13]} {[%emt 00:00:24]} Bb7
{[%clk 00:15:40]} {[%emt 00:01:27]} 32. Bb5 {[%clk 00:08:22]} {[%emt 00:01:21]}
Rc7 {[%clk 00:15:51]} {[%emt 00:00:19]} 33. Qxe4 {[%clk 00:07:28]} {[%emt
00:01:24]} Qa8 {[%clk 00:13:15]} {[%emt 00:03:05]} 34. Bd6 {[%clk 00:04:03]}
{[%emt 00:03:56]} Rc8 {[%clk 00:10:58]} {[%emt 00:02:47]} 35. Qe5 {[%clk
00:03:42]} {[%emt 00:00:51]} Nc3 {[%clk 00:10:47]} {[%emt 00:00:41]} 36. Re1
{[%clk 00:02:03]} {[%emt 00:02:09]} Nxb5 {[%clk 00:10:24]} {[%emt 00:00:53]} 37.
Qxb5 {[%clk 00:02:31]} {[%emt 00:00:02]} Qxa2 {[%clk 00:10:45]} {[%emt
00:00:09]} 38. Re2 {[%clk 00:01:58]} {[%emt 00:01:03]} Qa1+ {[%clk 00:10:25]}
{[%emt 00:00:49]} 39. Kf2 {[%clk 00:01:07]} {[%emt 00:01:21]} Qd4+ {[%clk
00:10:49]} {[%emt 00:00:06]} 40. Kf1 {[%clk 00:01:20]} {[%emt 00:00:17]} Rc1+
{[%clk 00:10:41]} {[%emt 00:00:38]} 41. Re1 {[%clk 00:01:41]} {[%emt 00:00:10]}
Rxe1+ {[%clk 00:10:34]} {[%emt 00:00:37]} 42. Kxe1 {[%clk 00:02:09]} {[%emt
00:00:01]} Qxd6 {[%clk 00:10:56]} {[%emt 00:00:08]} 43. Qe8+ {[%clk 00:02:23]}
{[%emt 00:00:16]} Qf8 {[%clk 00:11:08]} {[%emt 00:00:19]} 44. Qb5 {[%clk
00:02:39]} {[%emt 00:00:13]} Qe7+ {[%clk 00:11:15]} {[%emt 00:00:23]} 45. Kf1
{[%clk 00:02:57]} {[%emt 00:00:13]} Qe4 {[%clk 00:11:35]} {[%emt 00:00:09]} 46.
Qxb6 {[%clk 00:02:56]} {[%emt 00:00:32]} Qxg2+ {[%clk 00:11:48]} {[%emt
00:00:17]} 47. Ke1 {[%clk 00:03:21]} {[%emt 00:00:04]} Qh1+ {[%clk 00:12:10]}
{[%emt 00:00:08]} 48. Kd2 {[%clk 00:03:38]} {[%emt 00:00:13]} Qxh2+ {[%clk
00:12:31]} {[%emt 00:00:10]} 49. Kc3 {[%clk 00:03:48]} {[%emt 00:00:20]} Qg3+
{[%clk 00:12:49]} {[%emt 00:00:12]} 50. Kb2 {[%clk 00:03:57]} {[%emt 00:00:21]}
Qg2+ {[%clk 00:12:48]} {[%emt 00:00:31]} 51. Kc3 {[%clk 00:04:03]} {[%emt
00:00:24]} Qc6+ {[%clk 00:13:10]} {[%emt 00:00:08]} 52. Kd4 {[%emt 00:00:19]}
0-1